fUSD/lending_fUSD_20260605
["ID","MTS","AMOUNT","RATE_DAILY","PERIOD"]
[424126765,1780605053000,-797.0,0.00029588,2]
[424126767,1780605053000,-816.19080417,0.00029588,2]
[424126766,1780605053000,-797.0,0.00029588,2]
[424126768,1780605053000,-500.0,0.00029588,2]
[424126772,1780605053000,-500.0,0.00029588,2]
[424126770,1780605053000,-500.0,0.00029588,2]
[424126757,1780605053000,-797.0,0.00029588,2]
[424126777,1780605053000,-500.0,0.00029588,2]
[424126774,1780605053000,-500.0,0.00029588,2]
[424126790,1780605053000,-500.0,0.00029588,2]
[424126779,1780605053000,-500.0,0.00029588,2]
[424126793,1780605053000,-500.0,0.00029588,2]
[424126788,1780605053000,-150.0,0.00029588,2]
[424126786,1780605053000,-500.0,0.00029588,2]
[424126787,1780605053000,-500.0,0.00029588,2]
[424126781,1780605053000,-500.0,0.00029588,2]
[424126791,1780605053000,-352.0,0.00029588,2]
[424126792,1780605053000,-500.0,0.00029588,2]
[424126789,1780605053000,-500.0,0.00029588,2]
[424126785,1780605053000,-500.0,0.00029588,2]
[424126708,1780605053000,-500.0,0.00029588,2]
[424126775,1780605053000,-500.0,0.00029588,2]
[424126751,1780605053000,-797.0,0.00029588,2]
[424126783,1780605053000,-150.0,0.00029588,2]
[424126741,1780605053000,-797.0,0.00029588,2]
[424126753,1780605053000,-797.0,0.00029588,2]
[424126707,1780605053000,-195.56039172,0.00029588,2]
[424126706,1780605053000,-150.0,0.00029588,2]
[424126716,1780605053000,-395.35130281,0.00029588,2]
[424126718,1780605053000,-500.0,0.00029588,2]
[424126724,1780605053000,-500.0,0.00029588,2]
[424126720,1780605053000,-500.0,0.00029588,2]
[424126728,1780605053000,-500.0,0.00029588,2]
[424126730,1780605053000,-500.0,0.00029588,2]
[424126729,1780605053000,-500.0,0.00029588,2]
[424126725,1780605053000,-500.0,0.00029588,2]
[424126717,1780605053000,-500.0,0.00029588,2]
[424126727,1780605053000,-500.0,0.00029588,2]
[424126726,1780605053000,-500.0,0.00029588,2]
[424126709,1780605053000,-500.0,0.00029588,2]
[424126723,1780605053000,-500.0,0.00029588,2]
[424126722,1780605053000,-500.0,0.00029588,2]
[424126737,1780605053000,-797.0,0.00029588,2]
[424126733,1780605053000,-797.0,0.00029588,2]
[424126736,1780605053000,-797.0,0.00029588,2]
[424126747,1780605053000,-203.07400158,0.00029588,2]
[424126750,1780605053000,-797.0,0.00029588,2]
[424126745,1780605053000,-797.0,0.00029588,2]
[424126732,1780605053000,-797.0,0.00029588,2]
[424126734,1780605053000,-797.0,0.00029588,2]
[424126743,1780605053000,-797.0,0.00029588,2]
[424126739,1780605053000,-797.0,0.00029588,2]
[424126731,1780605053000,-575.24957036,0.00029588,2]
[424126735,1780605053000,-797.0,0.00029588,2]
[424126828,1780605054000,-1124.48,0.00029883,7]
[424126824,1780605054000,-1000.0,0.00029634,7]
[424126835,1780605054000,-244.7367933,0.00029952,2]
[424126825,1780605054000,-1000.0,0.00029703,7]
[424126830,1780605054000,-150.0,0.00029926,20]
[424126821,1780605054000,-2000.0,0.00029621,2]
[424126833,1780605054000,-213.88594878,0.00029952,2]
[424126832,1780605054000,-191.59343571,0.00029949,2]
[424126831,1780605054000,-1000.0,0.0002993,7]
[424126816,1780605054000,-2000.0,0.00029621,2]
[424126834,1780605054000,-218.15101478,0.00029952,2]
[424126839,1780605054000,-200.74373317,0.00029958,2]
[424126827,1780605054000,-1000.0,0.00029858,7]
[424126826,1780605054000,-1000.0,0.00029795,7]
[424126829,1780605054000,-1000.0,0.00029897,7]
[424126836,1780605054000,-207.29594352,0.00029958,2]
[424126840,1780605054000,-214.11853685,0.00029958,2]
[424126837,1780605054000,-236.01215028,0.00029958,2]
[424126838,1780605054000,-212.80808437,0.00029958,2]
[424126847,1780605054000,-216.37853026,0.00029958,2]
[424126841,1780605054000,-168.21826248,0.00029958,2]
[424126822,1780605054000,-2000.0,0.00029621,2]
[424126846,1780605054000,-158.59563751,0.00029958,2]
[424126823,1780605054000,-2000.0,0.00029621,2]
[424126820,1780605054000,-2000.0,0.00029621,2]
[424126805,1780605054000,-500.0,0.00029588,2]
[424126817,1780605054000,-2000.0,0.00029621,2]
[424126844,1780605054000,-367.34024817,0.00029958,2]
[424126795,1780605054000,-482.26296228,0.00029588,2]
[424126794,1780605054000,-500.0,0.00029588,2]
[424126796,1780605054000,-500.0,0.00029588,2]
[424126808,1780605054000,-500.0,0.00029588,2]
[424126800,1780605054000,-259.11494659,0.00029588,2]
[424126799,1780605054000,-500.0,0.00029588,2]
[424126806,1780605054000,-312.85414805,0.00029588,2]
[424126797,1780605054000,-150.0,0.00029588,2]
[424126798,1780605054000,-208.03381405,0.00029588,2]
[424126809,1780605054000,-500.0,0.00029588,2]
[424126803,1780605054000,-500.0,0.00029588,2]
[424126802,1780605054000,-150.0,0.00029588,2]
[424126807,1780605054000,-500.0,0.00029588,2]
[424126801,1780605054000,-500.0,0.00029588,2]
[424126804,1780605054000,-500.0,0.00029588,2]
[424126812,1780605054000,-150.0,0.00029588,2]
[424126813,1780605054000,-150.0,0.00029588,2]
[424126810,1780605054000,-537.42229834,0.00029588,2]
[424126815,1780605054000,-2000.0,0.00029621,2]
[424126811,1780605054000,-263.31961361,0.00029588,2]
[424126814,1780605054000,-2000.0,0.00029621,2]
[424126818,1780605054000,-2000.0,0.00029621,2]
[424126819,1780605054000,-2000.0,0.00029621,2]
[424126843,1780605054000,-228.9226691,0.00029958,2]
[424126848,1780605054000,-197.42994637,0.00029958,2]
[424126845,1780605054000,-257.64181589,0.00029958,2]
[424126877,1780605054000,-1358.09,0.0003,7]
[424126879,1780605054000,-173.0,0.0003,14]
[424126875,1780605054000,-959.27,0.0003,14]
[424126878,1780605054000,-200.0,0.0003,2]
[424126880,1780605054000,-215.73365239,0.0003,7]
[424126882,1780605054000,-504.0,0.00030042,5]
[424126890,1780605054000,-150.0,0.00030136,2]
[424126881,1780605054000,-186.05059448,0.00030014,2]
[424126891,1780605054000,-185.62,0.00030137,2]
[424126884,1780605054000,-1000.0,0.0003007,2]
[424126886,1780605054000,-1000.0,0.0003008,7]
[424126874,1780605054000,-271.99298022,0.00029989,2]
[424126885,1780605054000,-270.0455652,0.00030076,2]
[424126887,1780605054000,-200.0,0.00030127,2]
[424126889,1780605054000,-200.0,0.0003013,2]
[424126892,1780605054000,-500.0,0.00030137,3]
[424126894,1780605054000,-369.78045339,0.00030137,120]
[424126898,1780605054000,-500.0,0.00030137,3]
[424126893,1780605054000,-500.0,0.00030137,3]
[424126899,1780605054000,-500.0,0.00030137,3]
[424126896,1780605054000,-150.0,0.00030137,2]
[424126895,1780605054000,-1000.0,0.00030137,120]
[424126897,1780605054000,-500.0,0.00030137,3]
[424126842,1780605054000,-523.92,0.00029958,2]
[424126888,1780605054000,-1000.0,0.00030127,14]
[424126870,1780605054000,-1000.0,0.00029968,7]
[424126883,1780605054000,-500.0,0.0003007,2]
[424126872,1780605054000,-486.96111113,0.00029989,2]
[424126876,1780605054000,-1055.68,0.0003,7]
[424126850,1780605054000,-489.36122997,0.00029958,2]
[424126856,1780605054000,-342.07590446,0.00029958,2]
[424126854,1780605054000,-411.51907595,0.00029958,2]
[424126857,1780605054000,-183.69354974,0.00029958,2]
[424126851,1780605054000,-199.98862997,0.00029958,2]
[424126849,1780605054000,-208.39110537,0.00029958,2]
[424126853,1780605054000,-557.6469068,0.00029958,2]
[424126860,1780605054000,-501.56248299,0.00029958,2]
[424126859,1780605054000,-370.22902302,0.00029958,2]
[424126855,1780605054000,-203.59110324,0.00029958,2]
[424126858,1780605054000,-558.43347819,0.00029958,2]
[424126852,1780605054000,-479.53308683,0.00029958,2]
[424126873,1780605054000,-471.12538936,0.00029989,2]
[424126864,1780605054000,-275.19833817,0.00029958,2]
[424126863,1780605054000,-533.78954106,0.00029958,2]
[424126865,1780605054000,-198.17391839,0.00029958,2]
[424126866,1780605054000,-348.62553297,0.00029958,2]
[424126862,1780605054000,-478.88353614,0.00029958,2]
[424126867,1780605054000,-511.72023898,0.00029958,2]
[424126868,1780605054000,-191.54786584,0.00029958,2]
[424126869,1780605054000,-1000.0,0.00029964,7]
[424126871,1780605054000,-462.17354732,0.00029989,2]
[424126861,1780605054000,-456.20718397,0.00029958,2]
[424126937,1780605055000,-185.31,0.000302,2]
[424126935,1780605055000,-152.0,0.0003016,120]
[424126936,1780605055000,-303.0,0.000302,2]
[424126932,1780605055000,-165.28,0.00030137,2]
[424126933,1780605055000,-215.06729553,0.00030138,2]
[424126939,1780605055000,-152.0,0.00030214,120]
[424126931,1780605055000,-7094.0,0.00030137,7]
[424126929,1780605055000,-452.34331526,0.00030137,14]
[424126940,1780605055000,-152.0,0.00030214,120]
[424126942,1780605055000,-400.44,0.00030236,30]
[424126934,1780605055000,-217.3132247,0.00030138,2]
[424126952,1780605055000,-1055.68,0.000305,7]
[424126964,1780605055000,-199.41427773,0.0003054,2]
[424126941,1780605055000,-152.0,0.00030214,120]
[424126949,1780605055000,-200.0,0.00030428,2]
[424126948,1780605055000,-178.9,0.00030411,120]
[424126945,1780605055000,-3468.4,0.00030239,2]
[424126946,1780605055000,-512.85,0.00030395,7]
[424126951,1780605055000,-200.0,0.00030438,2]
[424126944,1780605055000,-400.43,0.00030236,30]
[424126947,1780605055000,-166.0,0.00030399,120]
[424126950,1780605055000,-200.0,0.00030431,2]
[424126963,1780605055000,-196.48884048,0.0003054,2]
[424126954,1780605055000,-383.18687143,0.0003053,2]
[424126938,1780605055000,-252.06,0.000302,2]
[424126943,1780605055000,-400.44,0.00030236,30]
[424126930,1780605055000,-200.0,0.00030137,2]
[424126902,1780605055000,-583.80346073,0.00030137,2]
[424126922,1780605055000,-150.0,0.00030137,2]
[424126958,1780605055000,-436.30202957,0.00030533,2]
[424126901,1780605055000,-389.20230715,0.00030137,2]
[424126900,1780605055000,-194.60115358,0.00030137,2]
[424126903,1780605055000,-500.0,0.00030137,3]
[424126905,1780605055000,-500.0,0.00030137,3]
[424126915,1780605055000,-1500.0,0.00030137,15]
[424126916,1780605055000,-1500.0,0.00030137,15]
[424126906,1780605055000,-12250.0852905,0.00030137,120]
[424126910,1780605055000,-1500.0,0.00030137,15]
[424126908,1780605055000,-500.0,0.00030137,3]
[424126913,1780605055000,-1500.0,0.00030137,15]
[424126914,1780605055000,-1500.0,0.00030137,15]
[424126911,1780605055000,-1500.0,0.00030137,15]
[424126907,1780605055000,-1245.24964235,0.00030137,120]
[424126904,1780605055000,-500.0,0.00030137,3]
[424126909,1780605055000,-1500.0,0.00030137,15]
[424126912,1780605055000,-1500.0,0.00030137,15]
[424126917,1780605055000,-1786.246574,0.00030137,15]
[424126919,1780605055000,-165.28,0.00030137,2]
[424126921,1780605055000,-150.0,0.00030137,2]
[424126920,1780605055000,-150.0,0.00030137,2]
[424126918,1780605055000,-165.09,0.00030137,2]
[424126924,1780605055000,-150.0,0.00030137,2]
[424126928,1780605055000,-165.28,0.00030137,2]
[424126923,1780605055000,-150.0,0.00030137,2]
[424126925,1780605055000,-150.0,0.00030137,2]
[424126926,1780605055000,-295.08896948,0.00030137,2]
[424126927,1780605055000,-150.0,0.00030137,2]
[424126955,1780605055000,-374.03902022,0.00030533,2]
[424126953,1780605055000,-1358.09,0.000305,7]
[424126956,1780605055000,-254.69439374,0.00030533,2]
[424126995,1780605055000,-639.37744911,0.0003054,2]
[424126993,1780605055000,-652.48163996,0.0003054,2]
[424126988,1780605055000,-515.28363177,0.0003054,2]
[424126994,1780605055000,-399.97725993,0.0003054,2]
[424126996,1780605055000,-743.52920907,0.0003054,2]
[424126998,1780605055000,-407.18220649,0.0003054,2]
[424126997,1780605055000,-617.27861392,0.0003054,2]
[424127000,1780605055000,-367.38709948,0.0003054,2]
[424127009,1780605055000,-329.11110173,0.0003054,2]
[424126999,1780605055000,-513.1138567,0.0003054,2]
[424127010,1780605055000,-550.39667635,0.0003054,2]
[424127003,1780605055000,-401.48746634,0.0003054,2]
[424126991,1780605055000,-394.85989273,0.0003054,2]
[424127008,1780605055000,-711.71938808,0.0003054,2]
[424127006,1780605055000,-428.23707371,0.0003054,2]
[424127005,1780605055000,-668.74997732,0.0003054,2]
[424127007,1780605055000,-638.51138152,0.0003054,2]
[424127004,1780605055000,-608.27624529,0.0003054,2]
[424127011,1780605055000,-396.34783679,0.0003054,2]
[424127013,1780605055000,-240.72063828,0.0003054,2]
[424127014,1780605055000,-154.67999322,0.0003054,2]
[424127016,1780605055000,-682.29365197,0.0003054,2]
[424127015,1780605055000,-427.77189756,0.0003054,2]
[424127012,1780605055000,-522.93829945,0.0003054,2]
[424127017,1780605055000,-383.09573168,0.0003054,2]
[424126957,1780605055000,-231.49095464,0.00030533,2]
[424127002,1780605055000,-555.34353453,0.0003054,2]
[424126992,1780605055000,-416.78221074,0.0003054,2]
[424127001,1780605055000,-744.57797092,0.0003054,2]
[424126989,1780605055000,-317.19127502,0.0003054,2]
[424126990,1780605055000,-432.75706051,0.0003054,2]
[424126960,1780605055000,-186.05059448,0.00030535,2]
[424126959,1780605055000,-489.47358659,0.00030533,2]
[424126961,1780605055000,-318.54066849,0.0003054,2]
[424126971,1780605055000,-778.40461431,0.0003054,2]
[424126970,1780605055000,-370.92585577,0.0003054,2]
[424126966,1780605055000,-414.59188704,0.0003054,2]
[424126972,1780605055000,-154.40514762,0.0003054,2]
[424126969,1780605055000,-364.0367666,0.0003054,2]
[424126967,1780605055000,-200.91472526,0.0003054,2]
[424126965,1780605055000,-151.46468938,0.0003054,2]
[424126968,1780605055000,-472.02430057,0.0003054,2]
[424126975,1780605055000,-425.61616874,0.0003054,2]
[424126973,1780605055000,-431.89152006,0.0003054,2]
[424126962,1780605055000,-410.03745865,0.0003054,2]
[424126987,1780605055000,-551.01037226,0.0003054,2]
[424126974,1780605055000,-413.78986884,0.0003054,2]
[424126984,1780605055000,-340.81357991,0.0003054,2]
[424126985,1780605055000,-457.84533819,0.0003054,2]
[424126983,1780605055000,-698.56,0.0003054,2]
[424126979,1780605055000,-157.50109676,0.0003054,2]
[424126986,1780605055000,-283.29765806,0.0003054,2]
[424126978,1780605055000,-159.83403232,0.0003054,2]
[424126976,1780605055000,-415.20961672,0.0003054,2]
[424126977,1780605055000,-336.43652496,0.0003054,2]
[424126980,1780605055000,-185.62484082,0.0003054,2]
[424126982,1780605055000,-186.14211185,0.0003054,2]
[424126981,1780605055000,-238.82427377,0.0003054,2]
[424127055,1780605056000,-1273.0,0.0003114,2]
[424127060,1780605056000,-785.20898226,0.00031152,2]
[424127058,1780605056000,-3641.0,0.0003114,2]
[424127057,1780605056000,-1226.0,0.0003114,2]
[424127049,1780605056000,-815.60204995,0.00031121,2]
[424127048,1780605056000,-186.05059448,0.00031057,2]
[424127050,1780605056000,-799.22181139,0.00031121,2]
[424127052,1780605056000,-760.34530662,0.00031121,2]
[424127046,1780605056000,-200.0,0.00031043,2]
[424127047,1780605056000,-200.0,0.0003105,2]
[424127059,1780605056000,-6070.0,0.0003114,2]
[424127051,1780605056000,-835.93747165,0.00031121,2]
[424127061,1780605056000,-362.703988,0.000312,4]
[424127062,1780605056000,-160.0,0.000312,4]
[424127063,1780605056000,-260.296012,0.000312,4]
[424127068,1780605056000,-200.0,0.0003135,2]
[424127065,1780605056000,-959.27,0.000312,14]
[424127064,1780605056000,-1000.0,0.000312,7]
[424127066,1780605056000,-504.0,0.00031203,6]
[424127067,1780605056000,-500.0,0.00031224,14]
[424127070,1780605056000,-200.0,0.00031361,2]
[424127071,1780605056000,-394.0,0.0003137,2]
[424127078,1780605056000,-150.0,0.00031644,2]
[424127073,1780605056000,-200.0,0.00031465,2]
[424127069,1780605056000,-200.0,0.00031353,2]
[424127081,1780605056000,-504.0,0.00031784,7]
[424127056,1780605056000,-525.0,0.0003114,2]
[424127053,1780605056000,-798.1392269,0.00031121,2]
[424127018,1780605056000,-302.79379145,0.0003057,2]
[424127045,1780605056000,-200.0,0.0003104,2]
[424127080,1780605056000,-399.62246101,0.00031717,2]
[424127022,1780605056000,-167.95583231,0.0003057,2]
[424127021,1780605056000,-201.67035082,0.0003057,2]
[424127019,1780605056000,-360.9320991,0.0003057,2]
[424127020,1780605056000,-297.42160564,0.0003057,2]
[424127024,1780605056000,-628.16718581,0.0003057,2]
[424127030,1780605056000,-382.87,0.000306,30]
[424127032,1780605056000,-266.39576586,0.00030624,2]
[424127031,1780605056000,-504.0,0.00030622,5]
[424127034,1780605056000,-430.13459107,0.00030722,2]
[424127033,1780605056000,-553.1,0.000307,7]
[424127028,1780605056000,-192.0,0.00030579,120]
[424127026,1780605056000,-730.44166669,0.0003057,2]
[424127025,1780605056000,-543.98596044,0.0003057,2]
[424127027,1780605056000,-693.26032098,0.0003057,2]
[424127029,1780605056000,-959.27,0.000306,14]
[424127023,1780605056000,-255.62735591,0.0003057,2]
[424127035,1780605056000,-189.76242315,0.00030722,2]
[424127039,1780605056000,-200.0,0.00030736,2]
[424127038,1780605056000,-200.0,0.00030733,2]
[424127036,1780605056000,-434.62644941,0.00030722,2]
[424127037,1780605056000,-209.6782459,0.00030722,2]
[424127041,1780605056000,-391.61397481,0.00030849,2]
[424127044,1780605056000,-1088.59,0.00031011,7]
[424127040,1780605056000,-200.0,0.00030743,2]
[424127042,1780605056000,-350.0,0.00030943,18]
[424127043,1780605056000,-150.0,0.00031011,2]
[424127054,1780605056000,-889.6492351,0.00031121,2]
[424127077,1780605056000,-186.05059448,0.00031578,2]
[424127079,1780605056000,-644.79446245,0.00031717,2]
[424127072,1780605056000,-200.0,0.00031465,2]
[424127114,1780605056000,-749.673451,0.00032,7]
[424127113,1780605056000,-749.673451,0.00032,7]
[424127111,1780605056000,-749.673451,0.00032,7]
[424127117,1780605056000,-160.0,0.000322,8]
[424127115,1780605056000,-186.05059448,0.000321,2]
[424127118,1780605056000,-183.801527,0.000322,7]
[424127116,1780605056000,-296.198473,0.000322,7]
[424127110,1780605056000,-557.281833,0.00032,7]
[424127120,1780605056000,-504.0,0.00032365,7]
[424127119,1780605056000,-3468.4,0.0003221,5]
[424127122,1780605056000,-150.0,0.00032456,22]
[424127133,1780605056000,-500.0,0.00032876,2]
[424127132,1780605056000,-500.0,0.00032876,2]
[424127121,1780605056000,-1052.7,0.0003242,7]
[424127125,1780605056000,-186.05059448,0.00032621,2]
[424127123,1780605056000,-1148.61,0.000325,30]
[424127126,1780605056000,-1314.51,0.00032645,15]
[424127124,1780605056000,-150.0,0.00032562,2]
[424127129,1780605056000,-423.95345124,0.00032876,2]
[424127127,1780605056000,-1000.0,0.000327,120]
[424127131,1780605056000,-500.0,0.00032876,2]
[424127130,1780605056000,-500.0,0.00032876,2]
[424127128,1780605056000,-150.328658,0.00032866,2]
[424127134,1780605056000,-500.0,0.00032876,2]
[424127074,1780605056000,-189.0,0.00031465,2]
[424127135,1780605056000,-500.0,0.00032876,2]
[424127137,1780605056000,-500.0,0.00032876,2]
[424127112,1780605056000,-749.673451,0.00032,7]
[424127109,1780605056000,-557.281833,0.00032,7]
[424127136,1780605056000,-500.0,0.00032876,2]
[424127103,1780605056000,-834.811559,0.00032,7]
[424127102,1780605056000,-834.811559,0.00032,7]
[424127075,1780605056000,-183.35,0.00031507,120]
[424127082,1780605056000,-499.99,0.00031822,120]
[424127084,1780605056000,-1200.0,0.000319,11]
[424127085,1780605056000,-421.0,0.00031917,30]
[424127083,1780605056000,-959.27,0.000319,14]
[424127086,1780605056000,-166.0,0.00031919,120]
[424127094,1780605056000,-151.0,0.00031997,7]
[424127093,1780605056000,-957.76707227,0.00031993,2]
[424127087,1780605056000,-7094.0,0.00031957,14]
[424127091,1780605056000,-912.41436794,0.00031993,2]
[424127089,1780605056000,-978.72245995,0.00031993,2]
[424127088,1780605056000,-181.52,0.00031963,2]
[424127076,1780605056000,-250.99567423,0.00031507,30]
[424127092,1780605056000,-1003.12496598,0.00031993,2]
[424127090,1780605056000,-959.06617367,0.00031993,2]
[424127104,1780605056000,-151.0,0.00032,7]
[424127105,1780605056000,-151.0,0.00032,7]
[424127101,1780605056000,-834.811559,0.00032,7]
[424127107,1780605056000,-151.0,0.00032,7]
[424127108,1780605056000,-557.281833,0.00032,7]
[424127097,1780605056000,-151.0,0.00032,7]
[424127095,1780605056000,-512391.07822418,0.00032,120]
[424127096,1780605056000,-1358.09,0.00032,7]
[424127100,1780605056000,-834.811559,0.00032,7]
[424127099,1780605056000,-151.0,0.00032,7]
[424127106,1780605056000,-557.281833,0.00032,7]
[424127098,1780605056000,-151.0,0.00032,7]
[424127188,1780605057000,-357.99,0.00033224,120]
[424127175,1780605057000,-504.0,0.00032946,8]
[424127166,1780605057000,-500.0,0.00032876,2]
[424127171,1780605057000,-242.915901,0.00032877,7]
[424127168,1780605057000,-500.0,0.00032876,2]
[424127169,1780605057000,-151.0,0.00032877,7]
[424127172,1780605057000,-1000.0,0.00032877,120]
[424127174,1780605057000,-274.05,0.000329,120]
[424127173,1780605057000,-500.6324604,0.00032877,2]
[424127177,1780605057000,-311.823431,0.00033,30]
[424127167,1780605057000,-500.0,0.00032876,2]
[424127189,1780605057000,-598.58169926,0.00033272,11]
[424127179,1780605057000,-571.96819715,0.00033123,120]
[424127178,1780605057000,-157.41631795,0.00033095,2]
[424127182,1780605057000,-512.85,0.00033193,14]
[424127183,1780605057000,-185.0,0.000332,11]
[424127181,1780605057000,-186.05059448,0.00033143,2]
[424127190,1780605057000,-203.96211639,0.00033272,11]
[424127180,1780605057000,-477.56845309,0.00033123,120]
[424127186,1780605057000,-353.96464,0.000332,9]
[424127185,1780605057000,-160.0,0.000332,9]
[424127184,1780605057000,-286.0,0.000332,9]
[424127170,1780605057000,-151.0,0.00032877,7]
[424127176,1780605057000,-278.42,0.00032954,30]
[424127162,1780605057000,-500.0,0.00032876,2]
[424127142,1780605057000,-500.0,0.00032876,2]
[424127163,1780605057000,-500.0,0.00032876,2]
[424127138,1780605057000,-500.0,0.00032876,2]
[424127141,1780605057000,-280.17381317,0.00032876,2]
[424127140,1780605057000,-249.52046831,0.00032876,2]
[424127139,1780605057000,-648.94210087,0.00032876,2]
[424127143,1780605057000,-500.0,0.00032876,2]
[424127153,1780605057000,-500.0,0.00032876,2]
[424127146,1780605057000,-500.0,0.00032876,2]
[424127151,1780605057000,-500.0,0.00032876,2]
[424127144,1780605057000,-500.0,0.00032876,2]
[424127145,1780605057000,-500.0,0.00032876,2]
[424127148,1780605057000,-500.0,0.00032876,2]
[424127165,1780605057000,-500.0,0.00032876,2]
[424127147,1780605057000,-259.76727145,0.00032876,2]
[424127150,1780605057000,-500.0,0.00032876,2]
[424127152,1780605057000,-500.0,0.00032876,2]
[424127154,1780605057000,-500.0,0.00032876,2]
[424127156,1780605057000,-500.0,0.00032876,2]
[424127161,1780605057000,-535.06723515,0.00032876,2]
[424127155,1780605057000,-500.0,0.00032876,2]
[424127160,1780605057000,-500.0,0.00032876,2]
[424127157,1780605057000,-500.0,0.00032876,2]
[424127164,1780605057000,-500.0,0.00032876,2]
[424127159,1780605057000,-500.0,0.00032876,2]
[424127158,1780605057000,-471.87533167,0.00032876,2]
[424127149,1780605057000,-500.0,0.00032876,2]
[424127187,1780605057000,-350.0,0.00033205,28]
[424127215,1780605057000,-187.729829,0.00033815,7]
[424127192,1780605057000,-1118.91053594,0.00033301,2]
[424127220,1780605057000,-151.0,0.00033815,7]
[424127222,1780605057000,-256.57751,0.00033815,7]
[424127219,1780605057000,-151.0,0.00033815,7]
[424127224,1780605057000,-256.57751,0.00033815,7]
[424127218,1780605057000,-187.729829,0.00033815,7]
[424127221,1780605057000,-278.369135,0.00033815,7]
[424127223,1780605057000,-256.57751,0.00033815,7]
[424127229,1780605057000,-2093.6470449,0.00033858,2]
[424127232,1780605057000,-500.0,0.00033955,11]
[424127233,1780605057000,-1156.78,0.00033955,11]
[424127234,1780605057000,-500.0,0.00033955,11]
[424127230,1780605057000,-500.0,0.00033922,120]
[424127235,1780605057000,-1055.68,0.00034,30]
[424127236,1780605057000,-2000.0,0.00034,3]
[424127241,1780605057000,-154.36638399,0.00034097,2]
[424127237,1780605057000,-215.73365239,0.00034,30]
[424127240,1780605057000,-16865.6987832,0.00034071,2]
[424127238,1780605057000,-4932.1,0.00034022,2]
[424127239,1780605057000,-889.17,0.00034022,7]
[424127242,1780605057000,-504.0,0.00034108,9]
[424127243,1780605057000,-1273.0,0.0003414,2]
[424127244,1780605057000,-525.0,0.0003414,2]
[424127191,1780605057000,-1141.84286994,0.00033301,2]
[424127217,1780605057000,-187.729829,0.00033815,7]
[424127216,1780605057000,-187.729829,0.00033815,7]
[424127231,1780605057000,-500.0,0.00033922,120]
[424127227,1780605057000,-668156.233484,0.00033815,2]
[424127228,1780605057000,-472.20942418,0.00033818,2]
[424127202,1780605057000,-186.05059448,0.00033664,2]
[424127198,1780605057000,-166.0,0.00033514,120]
[424127194,1780605057000,-1170.31246031,0.00033301,2]
[424127193,1780605057000,-1064.48342926,0.00033301,2]
[424127200,1780605057000,-186.04151345,0.00033549,11]
[424127199,1780605057000,-504.0,0.00033527,9]
[424127201,1780605057000,-671.53646064,0.0003361,2]
[424127196,1780605057000,-600.0,0.00033303,3]
[424127197,1780605057000,-1038.4812984,0.00033333,7]
[424127209,1780605057000,-151.0,0.00033781,7]
[424127203,1780605057000,-7094.0,0.00033665,30]
[424127195,1780605057000,-1117.39491765,0.00033301,2]
[424127210,1780605057000,-1541.829306,0.00033815,7]
[424127226,1780605057000,-151.0,0.00033815,7]
[424127225,1780605057000,-256.57751,0.00033815,7]
[424127208,1780605057000,-154.930219,0.00033781,7]
[424127212,1780605057000,-1541.829306,0.00033815,7]
[424127205,1780605057000,-561.44230291,0.00033781,7]
[424127206,1780605057000,-149824.08887128,0.00033781,7]